[Event "RUS-ch Rapid 2021"]
[Site "Sochi"]
[Date "2021.10.13"]
[Round "6.23"]
[White "Nesterov, Arseniy"]
[Black "Gogolev, Artem"]
[Result "1-0"]
[ECO "E20"]
[WhiteElo "2514"]
[BlackElo "2296"]
[Annotator "RC"]
[PlyCount "143"]
[EventDate "2021.10.12"]
[EventType "swiss"]
[EventCountry "RUS"]
[SourceTitle "playchess.com"]
[Source "ChessBase"]
[SourceQuality "1"]
[TimeControl "900+10"]

1. d4 {[%emt 0:00:00]} Nf6 {[%emt 0:03:07]} 2. c4 {[%emt 0:00:08]} e6 {[%emt 0:
00:00]} 3. Nc3 {[%emt 0:00:02]} Bb4 {[%emt 0:00:01]} 4. f3 {[%emt 0:00:00]} d5
{[%emt 0:01:20]} 5. a3 {[%emt 0:00:09]} Be7 {[%emt 0:00:21]} 6. e4 {[%emt 0:00:
05]} dxe4 {[%emt 0:00:10]} 7. fxe4 {[%emt 0:00:00]} c5 {[%emt 0:00:08]} 8. d5 {
[%emt 0:00:00]} exd5 {[%emt 0:00:04]} 9. exd5 {[%emt 0:00:09]} O-O {[%emt 0:00:
02]} 10. Be2 {[%emt 0:00:00]} Bd6 {[%emt 0:00:16]} 11. Nf3 {[%emt 0:00:14]} Bg4
{[%emt 0:00:04]} 12. O-O {[%emt 0:00:20]} Nbd7 {[%emt 0:00:16]} 13. Bg5 {
[%emt 0:01:40]} Re8 {[%emt 0:00:56]} 14. Qd2 {[%emt 0:00:53]} a6 {[%emt 0:01:
03]} 15. Rae1 {[%emt 0:01:20]} Qc7 {[%emt 0:00:12]} 16. h3 {[%emt 0:00:13]}
Bxf3 {[%emt 0:00:55]} 17. Rxf3 {[%emt 0:00:49]} Ne4 {[%emt 0:01:33]} 18. Nxe4 {
[%emt 0:00:21]} Rxe4 {[%emt 0:00:01]} 19. Ref1 {[%emt 0:02:01]} Ne5 {[%emt 0:
02:35]} 20. R3f2 {[%emt 0:00:37]} Re8 {[%emt 0:03:01]} 21. Qc2 {[%emt 0:01:46]}
Ng6 {[%emt 0:00:21]} 22. Bd3 {[%emt 0:01:27]} Re1 {[%emt 0:00:00]} 23. Bd2 {
[%emt 0:00:16]} Rxf1+ {[%emt 0:00:12]} 24. Rxf1 {[%emt 0:00:00]} Qd8 {[%emt 0:
01:05]} 25. Bxg6 {[%emt 0:02:13]} hxg6 {[%emt 0:00:03]} 26. Bf4 {[%emt 0:00:11]
} Qf6 {[%emt 0:00:32]} 27. Bxd6 {[%emt 0:00:06]} Qxd6 {[%emt 0:00:01]} 28. Qf2
{[%emt 0:00:03]} f6 {[%emt 0:00:22]} 29. Re1 {[%emt 0:00:14]} Rxe1+ {[%emt 0:
00:30]} 30. Qxe1 {[%emt 0:00:00]} Kf7 {[%emt 0:00:00]} 31. Qe3 {[%emt 0:00:26]}
b6 {[%emt 0:00:42]} 32. h4 {[%emt 0:00:14]} Qd7 {[%emt 0:00:26]} 33. Qf4 {
[%emt 0:00:52]} Qa4 {[%emt 0:00:04]} 34. Kh2 {[%emt 0:00:31]} Qd1 {[%emt 0:00:
09]} 35. Qe4 {[%emt 0:00:42]} Kf8 {[%emt 0:00:06]} 36. b4 {[%emt 0:00:21]} Qd2
{[%emt 0:00:11]} 37. bxc5 {[%emt 0:00:26]} bxc5 {[%emt 0:00:03]} 38. Qg4 {
[%emt 0:00:28]} f5 {[%emt 0:00:19]} 39. Qxg6 {[%emt 0:00:45]} Qf4+ {[%emt 0:00:
03]} 40. Kh3 {[%emt 0:00:00]} Qe3+ {[%emt 0:00:21]} 41. Qg3 {[%emt 0:00:15]}
Qe4 {[%emt 0:00:06]} 42. Qf3 {[%emt 0:00:42]} Qxc4 {[%emt 0:00:15]} 43. Qxf5+ {
[%emt 0:00:01]} Ke7 {[%emt 0:00:11]} 44. Qe5+ {[%emt 0:00:22]} Kf7 {[%emt 0:00:
06]} 45. Qc7+ {[%emt 0:00:32]} Kf8 {[%emt 0:00:13]} 46. Qd8+ {[%emt 0:00:18]}
Kf7 {[%emt 0:00:02]} 47. Qd7+ {[%emt 0:00:05]} Kf8 {[%emt 0:00:04]} 48. d6 {
[%emt 0:00:15]} Qd3+ {[%emt 0:00:24]} 49. Kh2 {[%emt 0:00:02]} Qe4 {[%emt 0:00:
04]} 50. Qd8+ {[%emt 0:00:14]} Kf7 {[%emt 0:00:00]} 51. Qg5 {[%emt 0:00:24]}
Qe6 {[%emt 0:00:15]} 52. Qxc5 {[%emt 0:00:04]} Qg4 {[%emt 0:00:23]} 53. Qd5+ {
[%emt 0:00:00]} Ke8 {[%emt 0:00:03]} 54. Qc6+ {[%emt 0:00:12]} Kf7 {[%emt 0:00:
03]} 55. Qf3+ {[%emt 0:00:28]} Qxf3 {[%emt 0:00:06]} 56. gxf3 {[%emt 0:00:01]}
Ke6 {[%emt 0:00:02]} 57. Kg3 {[%emt 0:00:00]} Kxd6 {[%emt 0:00:01]} 58. Kf4 {
[%emt 0:00:08]} a5 {[%emt 0:00:07]} 59. Kg5 {[%emt 0:00:12]} Ke7 {[%emt 0:00:
09]} 60. Kg6 {[%emt 0:00:23]} Kf8 {[%emt 0:00:00]} 61. a4 {[%emt 0:00:00]} Kg8
{[%emt 0:00:04]} 62. h5 {[%emt 0:00:03]} Kf8 {[%emt 0:00:05]} 63. h6 {[%emt 0:
00:05]} Kg8 {[%emt 0:00:10]} 64. f4 {[%emt 0:00:10]} gxh6 {[%emt 0:00:10]} 65.
Kxh6 {[%emt 0:00:00]} Kf7 {[%emt 0:00:02]} 66. Kg5 {[%emt 0:00:01]} Kg7 {
[%emt 0:00:01]} 67. Kf5 {[%emt 0:00:01]} Kf7 {[%emt 0:00:03]} 68. Ke5 {[%emt 0:
00:01]} Ke7 {[%emt 0:00:00]} 69. Kd5 {[%emt 0:00:03]} Kf6 {[%emt 0:00:00]} 70.
Kc5 {[%emt 0:00:01]} Kf5 {[%emt 0:00:11]} 71. Kb5 {[%emt 0:00:00]} Kxf4 {
[%emt 0:00:00]} 72. Kxa5 {[%emt 0:00:00]} 1-0

[Event "RUS-ch Rapid 2021"]
[Site "Sochi"]
[Date "2021.10.13"]
[Round "6.24"]
[White "Zakhartsov, Vladimir"]
[Black "Gavrilov, Maxim"]
[Result "1-0"]
[ECO "B20"]
[WhiteElo "2514"]
[BlackElo "2070"]
[Annotator "RC"]
[PlyCount "95"]
[EventDate "2021.10.12"]
[EventType "swiss"]
[EventCountry "RUS"]
[SourceTitle "playchess.com"]
[Source "ChessBase"]
[SourceQuality "1"]
[TimeControl "900+10"]

1. e4 {[%emt 0:00:00]} c5 {[%emt 0:00:04]} 2. Ne2 {[%emt 0:00:02]} d6 {[%emt 0:
00:08]} 3. g3 {[%emt 0:00:02]} Nc6 {[%emt 0:00:15]} 4. Bg2 {[%emt 0:00:18]} g6
{[%emt 0:00:00]} 5. c3 {[%emt 0:00:05]} Bg7 {[%emt 0:00:20]} 6. h3 {[%emt 0:00:
39]} e5 {[%emt 0:00:54]} 7. d3 {[%emt 0:00:10]} Nge7 {[%emt 0:00:14]} 8. a3 {
[%emt 0:00:16]} O-O {[%emt 0:01:05]} 9. b4 {[%emt 0:00:05]} a6 {[%emt 0:00:51]}
10. Be3 {[%emt 0:00:27]} cxb4 {[%emt 0:01:31]} 11. axb4 {[%emt 0:00:02]} Be6 {
[%emt 0:00:16]} 12. O-O {[%emt 0:00:15]} d5 {[%emt 0:00:22]} 13. Na3 {[%emt 0:
02:43]} d4 {[%emt 0:02:43]} 14. cxd4 {[%emt 0:00:00]} exd4 {[%emt 0:00:02]} 15.
Bd2 {[%emt 0:00:05]} Qd7 {[%emt 0:00:12]} 16. Nf4 {[%emt 0:00:13]} b5 {[%emt 0:
00:32]} 17. Nxe6 {[%emt 0:00:14]} fxe6 {[%emt 0:00:30]} 18. Qb3 {[%emt 0:00:48]
} Kh8 {[%emt 0:00:21]} 19. f4 {[%emt 0:00:08]} e5 {[%emt 0:00:33]} 20. Rf2 {
[%emt 0:00:49]} exf4 {[%emt 0:01:14]} 21. gxf4 {[%emt 0:00:09]} Rac8 {[%emt 0:
00:32]} 22. Nc2 {[%emt 0:00:10]} Qa7 {[%emt 0:00:59]} 23. Qa2 {[%emt 0:00:34]}
Nb8 {[%emt 0:00:39]} 24. Raf1 {[%emt 0:00:11]} Qc7 {[%emt 0:00:12]} 25. Ne1 {
[%emt 0:00:06]} Qd7 {[%emt 0:01:07]} 26. Nf3 {[%emt 0:00:07]} Nec6 {[%emt 0:01:
49]} 27. Ng5 {[%emt 0:00:21]} Rce8 {[%emt 0:00:21]} 28. e5 {[%emt 0:00:15]} Qe7
{[%emt 0:00:36]} 29. Qb3 {[%emt 0:00:19]} h6 {[%emt 0:00:38]} 30. Ne4 {[%emt 0:
00:03]} Qh4 {[%emt 0:00:28]} 31. Nd6 {[%emt 0:00:25]} Re7 {[%emt 0:00:07]} 32.
Qd1 {[%emt 0:01:37]} Qg3 {[%emt 0:00:43]} 33. Be1 {[%emt 0:01:11]} Qh4 {
[%emt 0:00:11]} 34. Rc2 {[%emt 0:00:17]} Qh5 {[%emt 0:00:06]} 35. Qxh5 {
[%emt 0:00:02]} gxh5 {[%emt 0:00:06]} 36. Rxc6 {[%emt 0:01:08]} Nxc6 {[%emt 0:
00:04]} 37. Bxc6 {[%emt 0:00:00]} Rc7 {[%emt 0:00:18]} 38. Be4 {[%emt 0:00:05]}
Rc1 {[%emt 0:00:06]} 39. Nf5 {[%emt 0:00:18]} Rfc8 {[%emt 0:00:05]} 40. Nxg7 {
[%emt 0:00:04]} Kxg7 {[%emt 0:00:01]} 41. Bh4 {[%emt 0:00:09]} Rxf1+ {[%emt 0:
00:04]} 42. Kxf1 {[%emt 0:00:03]} Kf7 {[%emt 0:00:25]} 43. f5 {[%emt 0:00:04]}
a5 {[%emt 0:00:02]} 44. e6+ {[%emt 0:00:11]} Kf8 {[%emt 0:00:08]} 45. e7+ {
[%emt 0:00:16]} Ke8 {[%emt 0:00:23]} 46. f6 {[%emt 0:00:09]} a4 {[%emt 0:00:00]
} 47. Bg6+ {[%emt 0:00:09]} Kd7 {[%emt 0:00:02]} 48. f7 {[%emt 0:00:09]} 1-0

[Event "RUS-ch Rapid 2021"]
[Site "Sochi"]
[Date "2021.10.13"]
[Round "7.2"]
[White "Iljiushenok, Ilia"]
[Black "Sarana, Alexey"]
[Result "1-0"]
[ECO "C25"]
[WhiteElo "2554"]
[BlackElo "2649"]
[Annotator "RC"]
[PlyCount "89"]
[EventDate "2021.10.12"]
[EventType "swiss"]
[EventCountry "RUS"]
[SourceTitle "playchess.com"]
[Source "ChessBase"]
[SourceQuality "1"]
[TimeControl "900+10"]

1. e4 {[%emt 0:00:04]} e5 {[%emt 0:00:00]} 2. Nc3 {[%emt 0:00:04]} Nc6 {
[%emt 0:00:02]} 3. Bc4 {[%emt 0:00:00]} Bc5 {[%emt 0:01:36]} 4. Qg4 {[%emt 0:
00:02]} g6 {[%emt 0:00:45]} 5. Qf3 {[%emt 0:00:00]} Nf6 {[%emt 0:00:11]} 6.
Nge2 {[%emt 0:00:25]} d6 {[%emt 0:00:12]} 7. d3 {[%emt 0:00:36]} Bg4 {[%emt 0:
00:37]} 8. Qg3 {[%emt 0:00:00]} Qd7 {[%emt 0:00:18]} 9. Qh4 {[%emt 0:01:07]}
Ng8 {[%emt 0:01:13]} 10. h3 {[%emt 0:04:47]} Be6 {[%emt 0:00:10]} 11. Nd5 {
[%emt 0:00:44]} Nce7 {[%emt 0:01:30]} 12. Nec3 {[%emt 0:01:47]} O-O-O {[%emt 0:
03:09]} 13. Bg5 {[%emt 0:00:33]} Bxd5 {[%emt 0:03:10]} 14. Nxd5 {[%emt 0:01:52]
} Nxd5 {[%emt 0:00:00]} 15. Bxd5 {[%emt 0:00:06]} f6 {[%emt 0:00:19]} 16. Bd2 {
[%emt 0:00:52]} Ne7 {[%emt 0:00:10]} 17. Bb3 {[%emt 0:00:00]} h5 {[%emt 0:00:
33]} 18. O-O-O {[%emt 0:00:53]} g5 {[%emt 0:00:52]} 19. Qg3 {[%emt 0:00:00]}
Rdf8 {[%emt 0:00:00]} 20. h4 {[%emt 0:01:09]} Ng6 {[%emt 0:01:13]} 21. hxg5 {
[%emt 0:00:12]} h4 {[%emt 0:00:00]} 22. Qh3 {[%emt 0:00:07]} Qxh3 {[%emt 0:00:
03]} 23. Rxh3 {[%emt 0:00:05]} Bxf2 {[%emt 0:00:17]} 24. Rf3 {[%emt 0:00:40]}
fxg5 {[%emt 0:00:21]} 25. Be6+ {[%emt 0:00:00]} Kb8 {[%emt 0:00:59]} 26. Bf5 {
[%emt 0:00:02]} Bb6 {[%emt 0:00:53]} 27. Bxg6 {[%emt 0:00:05]} Rxf3 {[%emt 0:
00:06]} 28. gxf3 {[%emt 0:00:00]} h3 {[%emt 0:00:00]} 29. Rh1 {[%emt 0:00:17]}
h2 {[%emt 0:00:01]} 30. Kd1 {[%emt 0:00:07]} Bg1 {[%emt 0:00:47]} 31. Bf5 {
[%emt 0:00:16]} d5 {[%emt 0:00:32]} 32. exd5 {[%emt 0:00:03]} Rf8 {[%emt 0:00:
11]} 33. Bg4 {[%emt 0:00:03]} Rd8 {[%emt 0:00:13]} 34. Ke2 {[%emt 0:00:06]}
Rxd5 {[%emt 0:00:00]} 35. Be3 {[%emt 0:00:07]} Ra5 {[%emt 0:00:04]} 36. a3 {
[%emt 0:00:14]} Rb5 {[%emt 0:00:00]} 37. b3 {[%emt 0:00:08]} Ra5 {[%emt 0:00:
07]} 38. a4 {[%emt 0:00:35]} b5 {[%emt 0:00:00]} 39. Bxg1 {[%emt 0:00:07]}
hxg1=Q {[%emt 0:00:00]} 40. Rxg1 {[%emt 0:00:03]} bxa4 {[%emt 0:00:04]} 41.
bxa4 {[%emt 0:00:01]} Rxa4 {[%emt 0:00:07]} 42. Be6 {[%emt 0:00:07]} Ra6 {
[%emt 0:00:00]} 43. Bf5 {[%emt 0:00:14]} Rh6 {[%emt 0:00:06]} 44. Rxg5 {
[%emt 0:00:10]} Rh2+ {[%emt 0:00:00]} 45. Kd1 {[%emt 0:00:00]} 1-0

[Event "RUS-ch Rapid 2021"]
[Site "Sochi"]
[Date "2021.10.13"]
[Round "7.3"]
[White "Bocharov, Dmitry"]
[Black "Riazantsev, Alexander"]
[Result "0-1"]
[ECO "A13"]
[WhiteElo "2517"]
[BlackElo "2634"]
[Annotator "RC"]
[PlyCount "54"]
[EventDate "2021.10.12"]
[EventType "swiss"]
[EventCountry "RUS"]
[SourceTitle "playchess.com"]
[Source "ChessBase"]
[SourceQuality "1"]
[TimeControl "900+10"]

1. c4 {[%emt 0:00:04]} e6 {[%emt 0:00:22]} 2. Nf3 {[%emt 0:00:05]} d5 {[%emt 0:
00:03]} 3. e3 {[%emt 0:00:13]} Nf6 {[%emt 0:00:00]} 4. b3 {[%emt 0:00:32]} Bd6
{[%emt 0:00:07]} 5. Bb2 {[%emt 0:00:11]} O-O {[%emt 0:00:00]} 6. Nc3 {[%emt 0:
00:14]} Re8 {[%emt 0:00:01]} 7. Be2 {[%emt 0:02:37]} b6 {[%emt 0:00:58]} 8. Qc2
{[%emt 0:01:25]} c5 {[%emt 0:00:18]} 9. cxd5 {[%emt 0:02:35]} exd5 {[%emt 0:04:
08]} 10. d4 {[%emt 0:00:40]} Bb7 {[%emt 0:00:27]} 11. O-O {[%emt 0:00:03]} Nbd7
{[%emt 0:00:28]} 12. Rfd1 {[%emt 0:00:11]} Rc8 {[%emt 0:00:54]} 13. Qf5 {
[%emt 0:00:21]} Qe7 {[%emt 0:01:47]} 14. Rac1 {[%emt 0:00:42]} a6 {[%emt 0:00:
10]} 15. dxc5 {[%emt 0:02:31]} bxc5 {[%emt 0:00:13]} 16. Nxd5 {[%emt 0:00:24]}
Nxd5 {[%emt 0:02:00]} 17. Rxd5 {[%emt 0:00:00]} Bxd5 {[%emt 0:00:00]} 18. Qxd5
{[%emt 0:00:06]} Ne5 {[%emt 0:00:00]} 19. Bxe5 {[%emt 0:00:43]} Bxe5 {[%emt 0:
00:00]} 20. Bxa6 {[%emt 0:00:21]} Bb2 {[%emt 0:01:02]} 21. Rb1 {[%emt 0:00:46]}
Ra8 {[%emt 0:02:57]} 22. Qc4 {[%emt 0:00:54]} Qa7 {[%emt 0:01:08]} 23. Bb5 {
[%emt 0:01:53]} Qxa2 {[%emt 0:00:03]} 24. Qc2 {[%emt 0:00:06]} Reb8 {[%emt 0:
00:34]} 25. Ba4 {[%emt 0:00:19]} c4 {[%emt 0:01:13]} 26. Rxb2 {[%emt 0:00:23]}
cxb3 {[%emt 0:00:00]} 27. Bxb3 {[%emt 0:00:12]} Qxb3 {[%emt 0:00:23]} 0-1

[Event "RUS-ch Rapid 2021"]
[Site "Sochi"]
[Date "2021.10.13"]
[Round "7.4"]
[White "Triapishko, Alexandr"]
[Black "Sjugirov, Sanan"]
[Result "0-1"]
[ECO "A07"]
[WhiteElo "2506"]
[BlackElo "2663"]
[Annotator "RC"]
[PlyCount "106"]
[EventDate "2021.10.12"]
[EventType "swiss"]
[EventCountry "RUS"]
[SourceTitle "playchess.com"]
[Source "ChessBase"]
[SourceQuality "1"]
[TimeControl "900+10"]

1. Nf3 {[%emt 0:01:08]} Nf6 {[%emt 0:00:34]} 2. g3 {[%emt 0:00:13]} d5 {
[%emt 0:00:25]} 3. Bg2 {[%emt 0:00:05]} e6 {[%emt 0:00:22]} 4. O-O {[%emt 0:00:
12]} Be7 {[%emt 0:00:07]} 5. d3 {[%emt 0:00:55]} O-O {[%emt 0:02:19]} 6. Bf4 {
[%emt 0:00:16]} Bd6 {[%emt 0:00:57]} 7. Bxd6 {[%emt 0:01:25]} cxd6 {[%emt 0:00:
00]} 8. c4 {[%emt 0:01:12]} Nc6 {[%emt 0:00:43]} 9. cxd5 {[%emt 0:01:28]} Nxd5
{[%emt 0:00:00]} 10. Nbd2 {[%emt 0:00:08]} Bd7 {[%emt 0:00:40]} 11. Rc1 {
[%emt 0:01:19]} Qe7 {[%emt 0:00:28]} 12. a3 {[%emt 0:01:56]} Rfc8 {[%emt 0:01:
10]} 13. Ne4 {[%emt 0:01:13]} h6 {[%emt 0:01:11]} 14. Nc3 {[%emt 0:00:56]} Nf6
{[%emt 0:00:19]} 15. e4 {[%emt 0:00:54]} e5 {[%emt 0:04:35]} 16. h3 {[%emt 0:
00:13]} Nh7 {[%emt 0:00:20]} 17. Qd2 {[%emt 0:03:18]} Ng5 {[%emt 0:00:50]} 18.
Nxg5 {[%emt 0:00:03]} hxg5 {[%emt 0:00:00]} 19. Ne2 {[%emt 0:00:35]} Qf6 {
[%emt 0:00:25]} 20. Qe3 {[%emt 0:00:43]} Be6 {[%emt 0:00:14]} 21. b4 {[%emt 0:
00:14]} b6 {[%emt 0:00:42]} 22. f4 {[%emt 0:00:11]} gxf4 {[%emt 0:00:06]} 23.
gxf4 {[%emt 0:00:00]} Qh6 {[%emt 0:00:06]} 24. Rc3 {[%emt 0:00:22]} Ne7 {
[%emt 0:00:33]} 25. Qg3 {[%emt 0:00:10]} Rxc3 {[%emt 0:00:21]} 26. Nxc3 {
[%emt 0:00:00]} Rc8 {[%emt 0:00:00]} 27. Ne2 {[%emt 0:00:21]} Rc2 {[%emt 0:00:
00]} 28. Rf2 {[%emt 0:00:06]} f6 {[%emt 0:00:27]} 29. h4 {[%emt 0:00:06]} Bf7 {
[%emt 0:00:30]} 30. Bf3 {[%emt 0:00:15]} Rd2 {[%emt 0:00:20]} 31. Bg4 {[%emt 0:
00:11]} Ng6 {[%emt 0:00:11]} 32. fxe5 {[%emt 0:00:10]} Nxe5 {[%emt 0:00:23]}
33. Nf4 {[%emt 0:00:09]} Rxf2 {[%emt 0:00:40]} 34. Kxf2 {[%emt 0:00:00]} Qxf4+
{[%emt 0:00:07]} 35. Qxf4 {[%emt 0:00:02]} Nxd3+ {[%emt 0:00:02]} 36. Ke3 {
[%emt 0:00:01]} Nxf4 {[%emt 0:00:00]} 37. Kxf4 {[%emt 0:00:08]} Kh7 {[%emt 0:
00:09]} 38. Ke3 {[%emt 0:00:31]} Kh6 {[%emt 0:00:17]} 39. Kd4 {[%emt 0:00:01]}
Bh5 {[%emt 0:00:15]} 40. Bd7 {[%emt 0:00:08]} Bf3 {[%emt 0:00:37]} 41. Be8 {
[%emt 0:00:26]} g6 {[%emt 0:00:17]} 42. Ke3 {[%emt 0:00:10]} Bg4 {[%emt 0:00:
02]} 43. Kf4 {[%emt 0:00:07]} Be6 {[%emt 0:00:04]} 44. Ke3 {[%emt 0:00:16]} Kg7
{[%emt 0:00:13]} 45. Kf4 {[%emt 0:00:10]} Bc8 {[%emt 0:00:07]} 46. Ke3 {
[%emt 0:00:10]} g5 {[%emt 0:00:04]} 47. hxg5 {[%emt 0:00:12]} fxg5 {[%emt 0:00:
01]} 48. Kd4 {[%emt 0:00:07]} Kf6 {[%emt 0:00:01]} 49. Kd5 {[%emt 0:00:04]} Ke7
{[%emt 0:00:01]} 50. Bh5 {[%emt 0:00:16]} g4 {[%emt 0:00:53]} 51. e5 {[%emt 0:
00:11]} Bb7+ {[%emt 0:00:07]} 52. Kd4 {[%emt 0:00:00]} dxe5+ {[%emt 0:00:07]}
53. Kxe5 {[%emt 0:00:11]} g3 {[%emt 0:00:02]} 0-1

[Event "RUS-ch Rapid 2021"]
[Site "Sochi"]
[Date "2021.10.13"]
[Round "7.5"]
[White "Timofeev, Artyom"]
[Black "Alekseev, Evgeny"]
[Result "1/2-1/2"]
[WhiteElo "2586"]
[BlackElo "2602"]
[Annotator "RC"]
[PlyCount "20"]
[EventDate "2021.10.12"]
[EventType "swiss"]
[EventCountry "RUS"]
[SourceTitle "playchess.com"]
[Source "ChessBase"]
[SourceQuality "1"]
[TimeControl "900+10"]

1. c4 {[%emt 0:00:04]} c5 {[%emt 0:00:06]} 2. Nc3 {[%emt 0:00:09]} g6 {[%emt 0:
00:00]} 3. g3 {[%emt 0:00:00]} Bg7 {[%emt 0:00:03]} 4. Bg2 {[%emt 0:00:02]} Nc6
{[%emt 0:00:07]} 5. Nf3 {[%emt 0:00:10]} d6 {[%emt 0:00:03]} 6. O-O {[%emt 0:
00:11]} e6 {[%emt 0:00:09]} 7. e3 {[%emt 0:00:36]} Nge7 {[%emt 0:00:11]} 8. d4
{[%emt 0:00:01]} O-O {[%emt 0:00:01]} 9. Re1 {[%emt 0:01:03]} cxd4 {[%emt 0:01:
57]} 10. Bf1 {[%emt 0:00:45]} Nb8 {[%emt 0:00:00]} 1/2-1/2

[Event "RUS-ch Rapid 2021"]
[Site "Sochi"]
[Date "2021.10.13"]
[Round "7.6"]
[White "Moiseenko, Vadim"]
[Black "Bologan, Victor"]
[Result "1/2-1/2"]
[ECO "C28"]
[WhiteElo "2542"]
[BlackElo "2574"]
[Annotator "RC"]
[PlyCount "122"]
[EventDate "2021.10.12"]
[EventType "swiss"]
[EventCountry "RUS"]
[SourceTitle "playchess.com"]
[Source "ChessBase"]
[SourceQuality "1"]
[TimeControl "900+10"]

1. e4 {[%emt 0:00:00]} e5 {[%emt 0:00:21]} 2. Bc4 {[%emt 0:00:21]} Nf6 {
[%emt 0:00:02]} 3. d3 {[%emt 0:00:09]} Nc6 {[%emt 0:00:12]} 4. Nc3 {[%emt 0:00:
00]} Na5 {[%emt 0:00:21]} 5. Bb3 {[%emt 0:00:00]} Bb4 {[%emt 0:00:50]} 6. Bg5 {
[%emt 0:00:34]} h6 {[%emt 0:01:55]} 7. Bh4 {[%emt 0:00:20]} Nxb3 {[%emt 0:00:
22]} 8. axb3 {[%emt 0:00:00]} d6 {[%emt 0:00:27]} 9. Nge2 {[%emt 0:00:38]} Be6
{[%emt 0:00:42]} 10. f4 {[%emt 0:01:10]} g5 {[%emt 0:01:36]} 11. fxg5 {[%emt 0:
01:12]} Nh5 {[%emt 0:00:51]} 12. Qc1 {[%emt 0:01:16]} Rg8 {[%emt 0:00:06]} 13.
Bf2 {[%emt 0:00:55]} hxg5 {[%emt 0:00:13]} 14. g3 {[%emt 0:00:12]} d5 {[%emt 0:
00:34]} 15. exd5 {[%emt 0:01:38]} Bxd5 {[%emt 0:03:12]} 16. Rf1 {[%emt 0:00:22]
} Nf6 {[%emt 0:00:55]} 17. Bg1 {[%emt 0:00:12]} a5 {[%emt 0:00:47]} 18. Rf5 {
[%emt 0:00:54]} Nd7 {[%emt 0:00:00]} 19. Be3 {[%emt 0:02:11]} g4 {[%emt 0:00:
29]} 20. Bg5 {[%emt 0:01:11]} f6 {[%emt 0:00:27]} 21. Bd2 {[%emt 0:00:04]} Be6
{[%emt 0:00:21]} 22. Rh5 {[%emt 0:00:00]} Qe7 {[%emt 0:00:17]} 23. Nb5 {
[%emt 0:00:41]} Nb6 {[%emt 0:00:59]} 24. Bxb4 {[%emt 0:01:20]} Qxb4+ {[%emt 0:
00:00]} 25. Nec3 {[%emt 0:00:00]} O-O-O {[%emt 0:00:10]} 26. Qe3 {[%emt 0:01:
06]} Bd7 {[%emt 0:00:20]} 27. Na3 {[%emt 0:01:22]} Rh8 {[%emt 0:01:02]} 28.
Rxh8 {[%emt 0:00:02]} Rxh8 {[%emt 0:00:00]} 29. Qd2 {[%emt 0:01:22]} a4 {
[%emt 0:00:26]} 30. Nc4 {[%emt 0:00:05]} Nxc4 {[%emt 0:00:31]} 31. dxc4 {
[%emt 0:00:12]} Bc6 {[%emt 0:00:11]} 32. Qf2 {[%emt 0:00:28]} Kb8 {[%emt 0:00:
36]} 33. Qxf6 {[%emt 0:00:30]} Rf8 {[%emt 0:00:06]} 34. Qg7 {[%emt 0:00:11]}
axb3 {[%emt 0:00:34]} 35. cxb3 {[%emt 0:00:03]} Bf3 {[%emt 0:00:33]} 36. Kd2 {
[%emt 0:00:16]} Rd8+ {[%emt 0:00:13]} 37. Kc2 {[%emt 0:00:01]} Qd6 {[%emt 0:00:
05]} 38. Kb1 {[%emt 0:00:12]} e4 {[%emt 0:00:15]} 39. Ra5 {[%emt 0:00:11]} e3 {
[%emt 0:00:06]} 40. Re5 {[%emt 0:00:17]} e2 {[%emt 0:00:04]} 41. Ka2 {[%emt 0:
00:09]} Qa6+ {[%emt 0:00:00]} 42. Na4 {[%emt 0:00:02]} Bc6 {[%emt 0:00:43]} 43.
Qf6 {[%emt 0:00:12]} Rc8 {[%emt 0:00:11]} 44. Rxe2 {[%emt 0:00:02]} Qa5 {
[%emt 0:00:03]} 45. Qe5 {[%emt 0:00:12]} Qa8 {[%emt 0:00:04]} 46. Ka3 {[%emt 0:
00:12]} b6 {[%emt 0:00:00]} 47. Rf2 {[%emt 0:00:15]} Qa6 {[%emt 0:00:05]} 48.
Kb4 {[%emt 0:00:13]} Kb7 {[%emt 0:00:03]} 49. Rf7 {[%emt 0:00:04]} Kb8 {
[%emt 0:00:09]} 50. Rg7 {[%emt 0:00:05]} Qb7 {[%emt 0:00:20]} 51. Rxg4 {
[%emt 0:00:15]} Bxa4 {[%emt 0:00:02]} 52. bxa4 {[%emt 0:00:12]} Qf3 {[%emt 0:
00:19]} 53. Rf4 {[%emt 0:00:06]} Qg2 {[%emt 0:00:05]} 54. a5 {[%emt 0:00:15]}
Qd2+ {[%emt 0:00:08]} 55. Ka3 {[%emt 0:00:18]} Rd8 {[%emt 0:00:26]} 56. Rf3 {
[%emt 0:00:08]} Qd1 {[%emt 0:00:02]} 57. Re3 {[%emt 0:00:12]} Qa1+ {[%emt 0:00:
12]} 58. Kb3 {[%emt 0:00:01]} Qd1+ {[%emt 0:00:03]} 59. Kb4 {[%emt 0:00:08]}
Kb7 {[%emt 0:00:28]} 60. axb6 {[%emt 0:00:15]} Qd2+ {[%emt 0:00:18]} 61. Qc3 {
[%emt 0:00:04]} c5+ {[%emt 0:00:18]} 1/2-1/2

[Event "RUS-ch Rapid 2021"]
[Site "Sochi"]
[Date "2021.10.13"]
[Round "7.7"]
[White "Lysyj, Igor"]
[Black "Rozum, Ivan"]
[Result "1-0"]
[ECO "D36"]
[WhiteElo "2603"]
[BlackElo "2529"]
[Annotator "RC"]
[PlyCount "55"]
[EventDate "2021.10.12"]
[EventType "swiss"]
[EventCountry "RUS"]
[SourceTitle "playchess.com"]
[Source "ChessBase"]
[SourceQuality "1"]
[TimeControl "900+10"]

1. d4 {[%emt 0:00:00]} Nf6 {[%emt 0:00:03]} 2. c4 {[%emt 0:00:11]} e6 {[%emt 0:
00:04]} 3. Nf3 {[%emt 0:00:01]} Bb4+ {[%emt 0:00:11]} 4. Bd2 {[%emt 0:00:00]}
Bxd2+ {[%emt 0:00:02]} 5. Qxd2 {[%emt 0:00:00]} O-O {[%emt 0:00:02]} 6. Nc3 {
[%emt 0:00:10]} d5 {[%emt 0:00:00]} 7. e3 {[%emt 0:00:05]} Qe7 {[%emt 0:00:00]}
8. cxd5 {[%emt 0:01:17]} exd5 {[%emt 0:00:02]} 9. Bd3 {[%emt 0:01:52]} c6 {
[%emt 0:00:00]} 10. O-O {[%emt 0:00:00]} Nbd7 {[%emt 0:00:00]} 11. Qc2 {
[%emt 0:00:00]} Re8 {[%emt 0:00:00]} 12. Rae1 {[%emt 0:00:00]} Ne4 {[%emt 0:03:
28]} 13. Nd2 {[%emt 0:00:00]} Ndf6 {[%emt 0:00:46]} 14. Nb3 {[%emt 0:00:03]}
Bf5 {[%emt 0:01:25]} 15. f3 {[%emt 0:01:55]} Nxc3 {[%emt 0:00:01]} 16. bxc3 {
[%emt 0:00:10]} Bg6 {[%emt 0:01:18]} 17. Bxg6 {[%emt 0:00:16]} hxg6 {[%emt 0:
00:00]} 18. e4 {[%emt 0:01:38]} dxe4 {[%emt 0:00:22]} 19. fxe4 {[%emt 0:00:00]}
Nd7 {[%emt 0:03:18]} 20. e5 {[%emt 0:00:10]} c5 {[%emt 0:00:04]} 21. e6 {
[%emt 0:01:38]} fxe6 {[%emt 0:00:11]} 22. Qxg6 {[%emt 0:00:02]} cxd4 {[%emt 0:
00:59]} 23. Nxd4 {[%emt 0:00:10]} Nf8 {[%emt 0:00:08]} 24. Qh5 {[%emt 0:00:31]}
Rac8 {[%emt 0:00:12]} 25. Nf5 {[%emt 0:01:26]} Qc5+ {[%emt 0:00:20]} 26. Kh1 {
[%emt 0:00:00]} Red8 {[%emt 0:01:39]} 27. Re5 {[%emt 0:02:25]} g6 {[%emt 0:03:
16]} 28. Rxc5 {[%emt 0:00:23]} 1-0